bitfinex/quotes_SOLUSD_20220211
["timestamp","ask_amount","ask_price","bid_price","bid_amount"]
[1644618754430,15.61360901,96.45,96.342,5.186]
[1644618754630,0.04820901,96.44,96.345,1.44991995]
[1644618754930,2.38366791,96.449,96.36,15.5651]
[1644618755131,0.04820901,96.44,96.361,5.186]
[1644618755331,2.38366791,96.449,96.347,5.186]
[1644618755534,2.38366791,96.439,96.347,5.186]
[1644618755834,2.38366791,96.439,96.345,1.44991995]
[1644618756030,5.187,96.438,96.346,1.44991995]
[1644618756232,2.38366791,96.439,96.344,1.44991995]
[1644618756436,2.38366791,96.438,96.352,1.44991995]
[1644618756631,2.38366791,96.438,96.354,1.44991995]
[1644618756833,2.38366791,96.438,96.36,15.565]
[1644618758036,28.713926,96.437,96.35,15.5673]
[1644618758233,239.112435,96.437,96.35,15.5673]
[1644618758434,2.38366791,96.436,96.35,15.5673]
[1644618758633,2.38366791,96.436,96.352,1.44991995]
[1644618758634,5.187,96.435,96.352,1.44991995]
[1644618759034,2.38366791,96.434,96.352,1.44991995]
[1644618759439,2.38366791,96.434,96.35,17.01721995]
[1644618759634,5.187,96.433,96.351,1.44991995]
[1644618759934,2.38366791,96.432,96.351,1.44991995]
[1644618760139,2.38366791,96.432,96.35,17.01721995]
[1644618760335,5.187,96.431,96.351,1.44991995]
[1644618760735,2.38366791,96.43,96.357,1.44991995]
[1644618761140,5.187,96.429,96.357,1.44991995]
[1644618761342,2.38366791,96.43,96.357,1.44991995]
[1644618761537,2.38366791,96.43,96.35,15.5673]
[1644618761538,5.187,96.429,96.353,1.44991995]
[1644618761738,2.38366791,96.428,96.355,1.44991995]
[1644618761938,2.38366791,96.428,96.353,1.44991995]
[1644618762138,2.38366791,96.428,96.35,17.01721995]
[1644618762339,238.198723,96.427,96.35,15.5673]
[1644618762540,233.011723,96.426,96.349,1.44991995]
[1644618762740,5.187,96.425,96.349,1.44991995]
[1644618763044,7.57066791,96.425,96.349,1.44991995]
[1644618763338,207.74312891,96.424,96.347,1.44991995]
[1644618763538,228.144261,96.423,96.347,1.44991995]
[1644618763738,15.5699,96.42,96.345,1.44991995]
[1644618763938,210.546461,96.419,96.344,1.44991995]
[1644618764139,210.546461,96.419,96.343,1.44991995]
[1644618764338,210.546461,96.419,96.342,1.44991995]
[1644618764339,205.359461,96.418,96.342,1.44991995]
[1644618764538,5.187,96.417,96.346,1.44991995]
[1644618764741,2.38366791,96.417,96.343,1.44991995]
[1644618764938,15.62050901,96.41,96.342,1.44991995]
[1644618765137,5.188,96.409,96.342,1.44991995]
[1644618765338,2.38366791,96.409,96.342,1.44991995]
[1644618765540,2.38366791,96.408,96.342,1.44991995]
[1644618765939,2.38366791,96.408,96.341,1.44991995]
[1644618766141,5.188,96.407,96.342,1.44991995]
[1644618766345,5.188,96.407,96.339,1.44991995]
[1644618766346,22.9786,96.407,96.339,1.44991995]
[1644618766542,22.9786,96.407,96.335,1.44991995]
[1644618766741,22.9786,96.407,96.337,1.44991995]
[1644618767039,22.9786,96.407,96.336,1.44991995]
[1644618767239,5.188,96.406,96.337,1.44991995]
[1644618767439,22.9786,96.407,96.338,1.44991995]
[1644618767638,5.188,96.405,96.339,1.44991995]
[1644618767839,5.188,96.406,96.339,1.44991995]
[1644618768640,22.9786,96.407,96.338,1.44991995]
[1644618769039,22.9786,96.407,96.337,1.44991995]
[1644618769243,22.9786,96.407,96.336,1.44991995]
[1644618770643,22.9786,96.407,96.337,1.44991995]
[1644618771541,22.9786,96.407,96.335,1.44991995]
[1644618772144,22.9786,96.407,96.334,1.44991995]
[1644618772341,5.188,96.406,96.333,1.44991995]
[1644618772541,5.188,96.406,96.335,1.44991995]
[1644618772942,5.188,96.406,96.34,15.5699]
[1644618773145,22.9786,96.407,96.34,15.5699]
[1644618774643,22.9786,96.407,96.343,1.44991995]
[1644618776050,5.188,96.406,96.341,1.44991995]
[1644618776848,5.188,96.406,96.34,17.01981995]
[1644618777048,22.9786,96.407,96.34,17.01981995]
[1644618777251,5.188,96.406,96.34,15.5699]
[1644618777449,5.188,96.406,96.34,17.01981995]
[1644618777648,5.188,96.406,96.34,15.5699]
[1644618778650,22.9786,96.407,96.34,15.5699]
[1644618780449,22.9786,96.407,96.34,17.01981995]
[1644618780649,5.188,96.406,96.34,17.01981995]
[1644618781073,5.188,96.406,96.34,15.5699]
[1644618781674,22.9786,96.407,96.347,1.44991995]
[1644618781875,24.1801,96.422,96.35,15.5675]
[1644618782075,0.04820901,96.42,96.35,15.5675]
[1644618782276,24.1801,96.422,96.35,15.5675]
[1644618782877,5.187,96.421,96.351,1.44991995]
[1644618783677,5.187,96.421,96.35,17.01741995]
[1644618783880,24.1801,96.422,96.35,17.01741995]
[1644618784078,15.5686,96.42,96.35,17.01741995]
[1644618784278,5.187,96.419,96.351,1.44991995]
[1644618784680,5.187,96.419,96.352,1.44991995]
[1644618785082,5.187,96.419,96.353,1.44991995]
[1644618785481,5.187,96.419,96.352,1.44991995]
[1644618785783,5.187,96.419,96.353,1.44991995]
[1644618786588,5.187,96.419,96.356,1.44991995]
[1644618786784,5.187,96.419,96.36,15.5676]
[1644618787186,15.61680901,96.42,96.36,15.5676]
[1644618787187,15.5686,96.42,96.36,15.5676]
[1644618787786,15.5686,96.42,96.331,2.92808823]
[1644618787989,23.58580233,96.336,96.33,54.82018823]
[1644618788187,23.58580233,96.336,96.332,4.97923668]
[1644618788488,0.00365399,96.336,96.331,5.19]
[1644618789288,0.00365399,96.336,96.332,4.68593893]
[1644618790988,0.00365399,96.336,96.332,9.87593893]
[1644618791191,0.00365399,96.336,96.332,4.68593893]
[1644618791391,0.00365399,96.336,96.333,4.68593893]
[1644618791589,0.00365399,96.336,96.332,4.68593893]
[1644618793899,0.00365399,96.336,96.333,5.19]
[1644618794095,0.00365399,96.336,96.334,4.68593893]
[1644618794597,0.00365399,96.336,96.333,4.68593893]
[1644618796096,0.00365399,96.336,96.334,5.19]
[1644618797099,0.00365399,96.336,96.335,4.68536812]
[1644618798700,0.00365399,96.336,96.332,4.68536812]
[1644618801911,5.19,96.421,96.35,15.5666]
[1644618803315,24.1801,96.422,96.35,15.5666]
[1644618804816,5.187,96.421,96.35,15.5666]
[1644618807433,24.1801,96.422,96.35,15.5666]
[1644618809735,0.04820901,96.43,96.35,15.5666]
[1644618810336,15.61500901,96.43,96.35,15.5666]
[1644618810736,0.04820901,96.43,96.35,15.5666]
[1644618811139,5.187,96.427,96.35,15.5666]
[1644618814945,0.04820901,96.43,96.35,15.5666]
[1644618818947,5.187,96.427,96.37,15.5638]
[1644618821352,25.04820901,96.45,96.38,15.5629]
[1644618821551,25.0,96.45,96.382,62.51]
[1644618821751,25.0,96.45,96.381,32.59410643]
[1644618821951,25.0,96.45,96.382,8.00500643]
[1644618822155,25.0,96.45,96.387,2.92808823]
[1644618822350,25.0,96.45,96.388,2.92808823]
[1644618822655,25.0,96.45,96.391,2.92808823]
[1644618822851,25.0,96.45,96.4,15.556]
[1644618823251,25.0,96.45,96.401,67.5869182]
[1644618823452,25.0,96.45,96.402,5.0769182]
[1644618823655,25.0,96.45,96.403,62.51]
[1644618823853,25.0,96.45,96.411,62.51]
[1644618824153,25.0,96.45,96.412,5.0769182]
[1644618824354,25.0,96.45,96.413,62.51]
[1644618824750,25.0,96.45,96.414,5.184]
[1644618824954,25.0,96.45,96.421,62.51]
[1644618826755,0.04820901,96.5,96.431,62.51]
[1644618826956,0.04820901,96.48,96.431,62.51]
[1644618827155,5.183,96.518,96.433,62.51]
[1644618827455,5.183,96.525,96.433,62.51]
[1644618827658,5.182,96.527,96.433,62.51]
[1644618827853,5.182,96.527,96.434,2.38366791]
[1644618828254,5.182,96.529,96.434,2.38366791]
[1644618828456,5.182,96.529,96.441,62.51]
[1644618828755,0.04820901,96.53,96.441,62.51]
[1644618828957,0.04820901,96.54,96.442,5.181]
[1644618829456,5.181,96.539,96.442,5.181]
[1644618829661,5.181,96.539,96.443,89.75356791]
[1644618829855,4.681,96.539,96.46,15.5467]
[1644618830067,0.04820901,96.54,96.461,24.8398]
[1644618830258,5.181,96.553,96.461,24.8398]
[1644618830455,5.181,96.539,96.461,24.8398]
[1644618830658,0.04820901,96.55,96.461,24.8398]
[1644618830858,5.181,96.549,96.461,24.8398]
[1644618831058,5.18,96.553,96.461,24.8398]
[1644618831857,5.18,96.553,96.48,15.5446]
[1644618832064,2.38366791,96.554,96.48,15.5446]
[1644618832458,5.18,96.569,96.48,15.5446]
[1644618833864,5.18,96.569,96.5,15.5439]
[1644618834058,205.463043,96.568,96.5,15.5439]
[1644618834558,5.179,96.567,96.5,15.5439]
[1644618834758,205.463043,96.566,96.5,15.5439]
[1644618835163,5.179,96.565,96.5,15.5439]
[1644618835363,5.179,96.574,96.5,15.5439]
[1644618835560,22.8513,96.576,96.5,15.5439]
[1644618835760,5.179,96.575,96.5,15.5439]
[1644618836060,22.8513,96.576,96.5,15.5439]
[1644618838466,5.179,96.579,96.501,62.51]
[1644618838666,0.56840756,96.58,96.52,15.5374]
[1644618838865,0.52019855,96.58,96.52,15.5374]
[1644618845597,0.52019855,96.58,96.52,15.0374]
[1644618847393,0.52019855,96.58,96.53,15.5354]
[1644618856102,0.52019855,96.58,96.531,5.178]
[1644618856304,0.52019855,96.58,96.54,15.5334]
[1644618859508,23.2971,96.625,96.522,23.5268]
[1644618859509,113.0,96.738,96.571,62.51]
[1644618859706,15.8459,96.751,96.62,20.57106306]
[1644618859906,0.04846309,96.7,96.62,20.57106306]
[1644618860105,0.04846309,96.7,96.621,8.50722518]
[1644618860304,0.04846309,96.74,96.621,8.50722518]
[1644618860507,0.04846309,96.7,96.624,2.91539546]
[1644618860710,0.04846309,96.73,96.624,2.91539546]
[1644618861007,0.04846309,96.7,96.624,2.91539546]
[1644618861210,0.04846309,96.72,96.64,15.522]
[1644618861406,0.04846309,96.7,96.64,15.522]
[1644618861605,0.04846309,96.73,96.64,15.522]
[1644618862509,0.04846309,96.74,96.64,15.522]
[1644618862907,2.171,96.739,96.64,15.522]
[1644618864409,2.171,96.739,96.66,15.5179]
[1644618864807,0.06340931,96.71,96.66,15.5179]
[1644618866012,0.00340931,96.71,96.66,15.5179]
[1644618866215,2.169,96.806,96.672,6.0]
[1644618866411,2.172,96.842,96.681,2.91539546]
[1644618866613,2.175,96.886,96.695,2.91539546]
[1644618866810,2.178,96.841,96.707,2.91539546]
[1644618867010,12.42159653,96.875,96.707,2.91539546]
[1644618867210,12.42159653,96.875,96.699,62.51]
[1644618867211,2.182,96.84,96.71,2.91539546]
[1644618867411,22.6578,96.873,96.709,5.49622541]
[1644618867713,2.185,96.839,96.71,15.5067]
[1644618867912,15.5058,96.84,96.711,5.49622541]
[1644618868114,2.188,96.839,96.712,62.51]
[1644618868414,2.188,96.839,96.713,68.00622541]
[1644618868615,1.671,96.858,96.714,5.166]
[1644618869617,15.5038,96.85,96.74,15.5033]
[1644618869817,1.671,96.858,96.741,5.165]
[1644618870017,1.671,96.858,96.732,5.165]
[1644618870817,1.671,96.858,96.77,15.4999]
[1644618875419,0.04857769,96.85,96.771,5.164]
[1644618875629,0.04857769,96.85,96.77,15.4999]
[1644618876421,1.21957769,96.858,96.77,15.4999]
[1644618876623,1.21957769,96.858,96.771,5.164]
[1644618878627,1.21957769,96.858,96.78,15.4993]
[1644618879029,1.21957769,96.858,96.781,5.164]
[1644618879429,20.87737769,96.873,96.772,6.0]
[1644618879629,24.5299,96.874,96.773,5.164]
[1644618880728,24.5299,96.874,96.8,15.4962]
[1644618881328,58.546211,96.873,96.8,15.4962]
[1644618881530,220.67829,96.873,96.735,52.8916]
[1644618881732,0.04868095,96.86,96.75,15.5015]
[1644618881928,0.04868095,96.86,96.751,5.164]
[1644618882152,0.04868095,96.86,96.741,5.165]
[1644618883956,15.55108095,96.86,96.76,15.5023]
[1644618884359,231.38304391,96.859,96.76,15.5023]
[1644618884557,219.110642,96.858,96.76,15.5023]
[1644618884959,23.9552,96.859,96.76,15.5023]
[1644618885162,23.9552,96.859,96.77,15.501]
[1644618885361,205.086527,96.858,96.77,15.501]
[1644618886863,205.086527,96.858,96.771,5.164]
[1644618887361,23.9552,96.859,96.78,15.499]
[1644618887560,23.9552,96.859,96.78,0.0001]
[1644618887761,2.38366791,96.857,96.78,0.0001]
[1644618887960,113.0,96.851,96.78,0.0001]
[1644618888359,2.38366791,96.85,96.78,0.0001]
[1644618888760,17.88586791,96.85,96.78,0.0001]
[1644618889161,2.38366791,96.849,96.78,0.0001]
[1644618889663,205.001953,96.848,96.78,0.0001]
[1644618890061,2.38366791,96.847,96.78,0.0001]
[1644618890263,205.001953,96.846,96.78,0.0001]
[1644618890461,228.982752,96.846,96.78,0.0001]
[1644618890661,2.38366791,96.845,96.78,0.0001]
[1644618890862,15.505,96.84,96.78,0.0001]
[1644618891071,205.0443,96.839,96.78,0.0001]
[1644618891260,207.42796791,96.839,96.78,0.0001]
[1644618891462,207.42796791,96.838,96.78,0.0001]
[1644618891766,0.04868095,96.83,96.78,0.0001]
[1644618891965,205.002248,96.829,96.78,0.0001]
[1644618892164,2.38366791,96.829,96.78,0.0001]
[1644618892362,205.002248,96.828,96.78,0.0001]
[1644618892563,207.38591591,96.828,96.781,5.165]
[1644618892763,205.002248,96.827,96.781,5.165]
[1644618892962,2.38366791,96.839,96.781,5.165]
[1644618893362,24.8971,96.844,96.781,5.165]
[1644618893762,2.38366791,96.843,96.781,5.165]
[1644618894963,2.38366791,96.843,96.78,15.5004]
[1644618895672,24.8971,96.844,96.803,2.91539546]
[1644618895865,17.93334886,96.86,96.803,2.91539546]
[1644618896165,13.810852,96.859,96.805,2.91539546]
[1644618896563,218.791499,96.869,96.802,2.91539546]
[1644618896763,0.04868095,96.86,96.803,2.91539546]
[1644618896963,13.810852,96.859,96.803,2.91539546]
[1644618897364,13.810852,96.858,96.803,2.91539546]
[1644618897563,218.791499,96.866,96.804,2.91539546]
[1644618897763,0.04868095,96.86,96.805,2.91539546]
[1644618897964,13.810852,96.859,96.803,2.91539546]
[1644618898367,13.810852,96.864,96.802,2.91539546]
[1644618898567,13.810852,96.863,96.806,2.91539546]
[1644618898764,13.810852,96.863,96.804,5.55151725]
[1644618898765,13.810852,96.862,96.808,2.91539546]
[1644618899165,13.810852,96.862,96.805,2.91539546]
[1644618899365,16.19451991,96.862,96.807,2.91539546]
[1644618899566,13.810852,96.861,96.808,2.91539546]
[1644618899769,2.38366791,96.862,96.808,2.91539546]
[1644618899966,2.38366791,96.86,96.81,2.91539546]
[1644618900368,2.38366791,96.86,96.811,2.91539546]
[1644618900566,2.38366791,96.86,96.808,2.91539546]
[1644618900970,2.38366791,96.86,96.809,2.91539546]
[1644618901269,2.38366791,96.86,96.811,2.91539546]
[1644618901469,2.38366791,96.86,96.81,5.55151725]
[1644618901669,2.38366791,96.86,96.812,5.55151725]
[1644618901967,2.43234886,96.86,96.813,5.55151725]
[1644618902169,2.38366791,96.86,96.809,5.55151725]
[1644618902373,2.43234886,96.86,96.809,5.55151725]
[1644618902569,2.38366791,96.86,96.805,2.91539546]
[1644618902770,2.38366791,96.86,96.81,5.55151725]
[1644618902969,2.38366791,96.86,96.809,2.91539546]
[1644618903171,2.38366791,96.86,96.811,2.91539546]
[1644618903671,2.38366791,96.86,96.81,2.91539546]
[1644618903870,0.04868095,96.87,96.81,2.91539546]
[1644618904072,2.38366791,96.876,96.815,2.91539546]
[1644618904270,0.04868095,96.87,96.819,2.91539546]
[1644618904471,2.38366791,96.876,96.821,2.91539546]
[1644618904671,0.04868095,96.87,96.815,2.91539546]
[1644618904876,2.38366791,96.876,96.814,2.91539546]
[1644618905071,2.38366791,96.876,96.788,4.42119406]
[1644618905072,0.04868095,96.87,96.815,2.91539546]
[1644618905272,0.04868095,96.87,96.82,15.4938]
[1644618905473,2.38366791,96.876,96.821,5.55151725]
[1644618905876,2.38366791,96.876,96.815,2.91539546]
[1644618906075,2.38366791,96.876,96.816,5.55151725]
[1644618906272,0.04868095,96.87,96.816,5.55151725]
[1644618906476,2.38366791,96.889,96.813,5.55151725]
[1644618906672,2.38366791,96.889,96.812,2.91539546]
[1644618906673,0.04868095,96.88,96.83,15.4925]
[1644618906972,2.38366791,96.889,96.83,15.4925]
[1644618907173,2.38366791,96.889,96.814,2.91539546]
[1644618907375,2.38366791,96.889,96.811,5.162]
[1644618907376,2.38366791,96.889,96.812,5.5446014]
[1644618907572,2.38366791,96.889,96.807,2.91539546]
[1644618907772,0.04879719,96.88,96.807,2.91539546]
[1644618907971,2.38366791,96.889,96.788,5.162]
[1644618907972,2.38366791,96.889,96.82,15.4945]
[1644618908176,0.04879719,96.87,96.833,1.46159676]
[1644618908374,2.38366791,96.889,96.83,1.46159676]
[1644618908575,2.38366791,96.889,96.834,1.46159676]
[1644618908576,0.04879719,96.88,96.834,1.46159676]
[1644618908776,2.38366791,96.889,96.833,1.46159676]
[1644618908977,2.38366791,96.889,96.835,1.46159676]
[1644618909176,0.04879719,96.88,96.834,1.46159676]
[1644618909376,2.38366791,96.889,96.83,1.46159676]
[1644618909577,0.04879719,96.88,96.83,1.46159676]
[1644618909776,2.38366791,96.889,96.83,15.4918]
[1644618909979,2.38366791,96.889,96.831,5.162]
[1644618910177,2.38366791,96.889,96.836,1.46159676]
[1644618910476,1.38366791,96.889,96.83,15.4918]
[1644618910676,1.38366791,96.889,96.827,1.46159676]
[1644618910878,15.4958,96.88,96.82,1.46159676]
[1644618911077,15.54459719,96.88,96.819,1.46159676]
[1644618911278,15.4958,96.88,96.819,1.46159676]
[1644618911477,2.38366791,96.879,96.816,1.46159676]
[1644618911679,60.003075,96.878,96.815,1.46159676]
[1644618911877,60.003075,96.878,96.792,5.162]
[1644618911878,0.04879719,96.87,96.809,1.46159676]
[1644618912078,24.6216,96.877,96.809,1.46159676]
[1644618912278,24.6216,96.877,96.806,1.46159676]
[1644618912279,28.711151,96.876,96.806,1.46159676]
[1644618912481,0.04879719,96.87,96.806,1.46159676]
[1644618912681,15.4976,96.87,96.805,1.46159676]
[1644618912880,34.521834,96.869,96.806,1.46159676]
[1644618913081,34.521834,96.869,96.804,1.46159676]
[1644618913482,34.521834,96.869,96.801,1.46159676]
[1644618913681,28.711151,96.869,96.8,15.4979]
[1644618913881,28.711151,96.868,96.8,15.4979]
[1644618914084,15.4992,96.86,96.8,15.4979]
[1644618915085,15.4992,96.86,96.801,5.163]
[1644618916307,15.4992,96.86,96.8,15.4979]
[1644618917410,101.48282591,96.859,96.781,5.163]
[1644618917614,15.5038,96.84,96.781,5.163]
[1644618918008,15.5038,96.84,96.766,1.46159676]
[1644618918210,0.04879719,96.83,96.76,1.46159676]
[1644618918408,26.46846791,96.839,96.76,1.46159676]
[1644618918608,15.5051,96.82,96.76,1.46159676]
[1644618919008,2.38366791,96.819,96.757,1.46159676]
[1644618919208,2.38366791,96.819,96.756,1.46159676]
[1644618919409,22.948154,96.818,96.756,1.46159676]
[1644618919608,22.948154,96.818,96.742,1.46159676]
[1644618919809,2.38366791,96.817,96.742,1.46159676]
[1644618920010,22.948154,96.816,96.741,1.46159676]
[1644618920213,22.948154,96.816,96.731,23.3372]
[1644618920214,205.260847,96.816,96.74,1.46159676]
[1644618920411,2.38366791,96.815,96.74,1.46159676]
[1644618920810,15.508,96.81,96.741,5.165]
[1644618921312,2.38366791,96.809,96.741,5.165]
[1644618921511,2.38366791,96.809,96.738,1.46159676]
[1644618921712,0.04879719,96.81,96.737,1.46159676]
[1644618921912,15.5875,96.819,96.738,1.46159676]
[1644618922513,10.176106,96.818,96.738,1.46159676]
[1644618922816,15.5083,96.8,96.738,1.46159676]
[1644618923410,15.5083,96.8,96.737,1.46159676]
[1644618923813,15.5083,96.8,96.734,1.97827835]
[1644618924113,15.5083,96.8,96.739,1.46159676]
[1644618924312,15.5083,96.8,96.74,5.165]
[1644618924612,15.5083,96.8,96.737,1.46159676]
[1644618924812,15.5083,96.8,96.744,1.46159676]
[1644618925012,15.5083,96.8,96.745,1.46159676]
[1644618925416,15.5083,96.8,96.746,1.46159676]
[1644618925613,15.5083,96.8,96.748,1.46159676]
[1644618925813,15.5083,96.8,96.747,1.46159676]
[1644618926013,15.5083,96.8,96.748,5.165]
[1644618926216,15.5083,96.8,96.746,1.46159676]
[1644618926414,15.5083,96.8,96.747,5.165]
[1644618927215,15.5083,96.8,96.747,6.62659676]
[1644618927516,15.5083,96.8,96.747,5.165]
[1644618927817,15.5083,96.8,96.747,6.62659676]
[1644618928420,15.5083,96.8,96.747,5.165]
[1644618931821,15.5083,96.8,96.744,1.46159676]
[1644618932022,15.5083,96.8,96.745,1.46159676]
[1644618932922,2.38366791,96.799,96.745,1.46159676]
[1644618933125,15.5106,96.79,96.745,1.46159676]
[1644618933323,15.5106,96.79,96.737,1.46159676]
[1644618933626,15.5106,96.79,96.738,1.46159676]
[1644618934324,15.5106,96.79,96.737,1.46159676]
[1644618934825,15.5106,96.79,96.736,1.46159676]
[1644618935024,15.5106,96.79,96.737,1.46159676]
[1644618935224,15.5106,96.79,96.738,1.46159676]
[1644618936128,15.5106,96.79,96.737,1.46159676]
[1644618936529,2.38366791,96.789,96.736,1.46159676]
[1644618936728,234.939392,96.788,96.734,0.51668159]
[1644618936930,15.5179,96.78,96.734,0.51668159]
[1644618937329,15.5179,96.78,96.668,4.42119406]
[1644618937330,224.56626104,96.779,96.707,1.46159676]
[1644618937530,51.7309,96.77,96.707,1.46159676]
[1644618937730,229.923257,96.769,96.701,1.46159676]
[1644618937932,15.5193,96.76,96.698,1.46159676]
[1644618938134,15.5193,96.76,96.694,1.46159676]
[1644618938331,15.5193,96.76,96.696,1.46159676]
[1644618938532,30.06208291,96.759,96.696,1.46159676]
[1644618938731,27.678415,96.758,96.695,1.46159676]
[1644618938931,2.38366791,96.758,96.698,1.46159676]
[1644618939233,235.44613491,96.757,96.692,1.46159676]
[1644618939431,25.18986791,96.757,96.681,1.46159676]
[1644618939631,15.5218,96.75,96.68,1.46159676]
[1644618939831,15.5218,96.75,96.684,1.46159676]
[1644618940131,2.38366791,96.749,96.683,1.46159676]
[1644618940329,2.38366791,96.749,96.684,5.168]
[1644618940532,2.38366791,96.749,96.682,1.46159676]
[1644618940833,2.38366791,96.749,96.683,5.168]
[1644618941031,2.38366791,96.749,96.683,6.62959676]
[1644618941232,2.38366791,96.749,96.683,1.46159676]
[1644618941431,2.38366791,96.749,96.682,1.46159676]
[1644618941831,15.5193,96.73,96.683,5.168]
[1644618942231,15.5193,96.73,96.683,6.62959676]
[1644618942431,15.5193,96.73,96.683,1.46159676]
[1644618942641,15.5193,96.73,96.684,5.17]
[1644618944634,17.90296791,96.73,96.684,5.17]
[1644618945637,17.90296791,96.73,96.67,1.46159676]
[1644618945836,17.90296791,96.73,96.671,5.17]
[1644618946040,17.90296791,96.73,96.662,1.46159676]
[1644618946237,15.5268,96.71,96.656,1.46159676]
[1644618946536,15.5268,96.71,96.653,1.46159676]
[1644618946736,2.38366791,96.709,96.649,1.46159676]
[1644618946936,25.57156791,96.709,96.649,1.46159676]
[1644618947135,25.57156791,96.709,96.648,1.46159676]
[1644618947337,2.38366791,96.708,96.647,1.46159676]
[1644618947539,2.38366791,96.708,96.646,1.46159676]
[1644618947736,2.38366791,96.708,96.644,1.46159676]
[1644618948139,2.38366791,96.708,96.645,1.46159676]
[1644618948337,2.38366791,96.708,96.638,1.46159676]
[1644618948738,2.38366791,96.708,96.623,5.171]
[1644618948739,15.5281,96.7,96.637,1.46159676]
[1644618948938,15.5281,96.7,96.634,1.46159676]
[1644618949140,2.38366791,96.699,96.634,1.46159676]
[1644618949339,17.503801,96.698,96.63,1.46159676]
[1644618949539,17.503801,96.698,96.628,1.46159676]
[1644618949742,15.5295,96.68,96.629,1.46159676]
[1644618949941,15.5295,96.68,96.628,1.46159676]
[1644618950149,15.5295,96.68,96.627,1.46159676]
[1644618950347,15.5295,96.68,96.626,1.46159676]
[1644618950847,14.5295,96.68,96.626,1.46159676]
[1644618951051,14.5295,96.68,96.625,1.46159676]
[1644618951246,2.38366791,96.679,96.62,1.46159676]
[1644618951448,15.5322,96.67,96.613,1.46159676]
[1644618951648,15.5322,96.67,96.611,1.46159676]
[1644618951846,2.38366791,96.669,96.61,1.46159676]
[1644618952046,2.38366791,96.669,96.605,1.46159676]
[1644618952545,15.5337,96.66,96.602,1.46159676]
[1644618953547,15.5337,96.66,96.601,1.46159676]
[1644618953945,15.5339,96.65,96.601,1.46159676]
[1644618954149,15.5339,96.65,96.602,1.46159676]
[1644618954345,15.5339,96.65,96.598,1.46159676]
[1644618954548,15.5339,96.65,96.599,1.46159676]
[1644618954948,15.5339,96.65,96.598,1.46159676]
[1644618955147,15.5339,96.65,96.597,1.46159676]
[1644618955447,15.5339,96.65,96.595,1.46159676]
[1644618955648,15.5339,96.65,96.596,1.46159676]
[1644618955850,15.5339,96.65,96.599,1.46159676]
[1644618956250,15.5339,96.65,96.6,1.46159676]
[1644618956649,2.38366791,96.669,96.598,1.46159676]
[1644618956848,15.5309,96.67,96.598,1.46159676]
[1644618957049,15.5309,96.67,96.599,6.63559676]
[1644618957267,15.5309,96.67,96.601,1.46159676]
[1644618957469,15.5309,96.67,96.603,1.46159676]
[1644618957666,15.5309,96.67,96.604,1.46159676]
[1644618958067,15.5309,96.67,96.605,1.46159676]
[1644618958267,15.5309,96.67,96.608,1.46159676]
[1644618958467,15.5309,96.67,96.609,1.46159676]
[1644618959967,15.5309,96.67,96.608,1.46159676]
[1644618960369,15.5279,96.68,96.61,16.99009676]
[1644618960569,15.5279,96.68,96.621,1.46159676]
[1644618960967,15.5279,96.68,96.61,15.5285]
[1644618960968,15.5279,96.68,96.62,1.46159676]
[1644618961372,15.5279,96.68,96.621,1.46159676]
[1644618961569,15.5279,96.68,96.624,1.46159676]
[1644618962173,15.5279,96.68,96.625,1.46159676]
[1644618962369,2.38366791,96.708,96.625,1.46159676]
[1644618962569,2.38366791,96.708,96.629,1.46159676]
[1644618962771,15.7433,96.721,96.633,1.46159676]
[1644618962972,4.235145,96.72,96.636,1.46159676]
[1644618963175,2.38366791,96.728,96.639,1.46159676]
[1644618963472,15.5243,96.71,96.641,1.46159676]
[1644618963770,15.5243,96.71,96.645,1.46159676]
[1644618963976,4.235145,96.709,96.646,1.46159676]
[1644618964173,2.38366791,96.728,96.646,1.46159676]
[1644618964374,2.38366791,96.728,96.66,1.46159676]
[1644618964571,15.5213,96.72,96.66,16.98189676]
[1644618964982,15.5213,96.72,96.661,1.46159676]
[1644618965382,15.5213,96.72,96.662,1.46159676]
[1644618965783,2.38366791,96.728,96.67,15.5191]